[Event "MČR 2022 rapid"]
[Site "Turnov, Czech Republic"]
[Date "2022.09.11"]
[Round "7.7"]
[White "Neuman, Petr"]
[Black "Finěk, Václav"]
[Result "1-0"]
[TimeControl "2x 15 min + 5s/move"]
[WhiteElo "2416"]
[BlackElo "2062"]

1. e4 {[%clk 00:15:08]} {[%emt 00:00:14]} c5 {[%clk 00:15:09]} 2. Nc3 {[%clk
00:15:10]} Nc6 {[%clk 00:15:12]} 3. Bb5 {[%clk 00:15:13]} {[%emt 00:00:05]} Nd4
{[%clk 00:15:12]} 4. Bc4 {[%clk 00:15:16]} g6 {[%clk 00:14:35]} {[%emt
00:00:38]} 5. Nf3 {[%clk 00:15:19]} Bg7 {[%clk 00:14:29]} {[%emt 00:00:11]} 6.
Nxd4 {[%clk 00:15:22]} {[%emt 00:00:09]} cxd4 {[%clk 00:13:57]} {[%emt
00:00:30]} 7. Qf3 {[%clk 00:15:25]} {[%emt 00:00:05]} Nh6 {[%clk 00:12:57]}
{[%emt 00:01:07]} 8. Ne2 {[%clk 00:15:29]} O-O {[%clk 00:12:34]} {[%emt
00:00:30]} 9. d3 {[%clk 00:15:33]} d6 {[%clk 00:12:01]} {[%emt 00:00:34]} 10.
Qg3 {[%clk 00:12:10]} {[%emt 00:03:28]} Ng4 {[%clk 00:11:09]} {[%emt 00:01:02]}
11. Bb3 {[%clk 00:12:05]} {[%emt 00:00:08]} Qb6 {[%clk 00:10:38]} {[%emt
00:00:33]} 12. h4 {[%clk 00:11:06]} {[%emt 00:01:09]} Nf6 {[%clk 00:09:29]}
{[%emt 00:01:13]} 13. h5 {[%clk 00:10:54]} {[%emt 00:00:16]} Nxh5 {[%clk
00:07:35]} {[%emt 00:01:57]} 14. Qh4 {[%clk 00:09:35]} {[%emt 00:01:23]} Nf6
{[%clk 00:05:49]} {[%emt 00:01:56]} 15. Nf4 {[%clk 00:07:58]} {[%emt 00:01:37]}
e6 {[%clk 00:03:12]} {[%emt 00:03:04]} 16. Bd2 {[%clk 00:06:43]} {[%emt
00:01:08]} Qd8 {[%clk 00:02:35]} {[%emt 00:00:31]} 17. g4 {[%clk 00:06:14]}
{[%emt 00:00:36]} h6 {[%clk 00:02:19]} {[%emt 00:00:24]} 18. Qg3 {[%clk
00:06:06]} {[%emt 00:00:14]} b5 {[%clk 00:01:39]} {[%emt 00:00:43]} 19. a4
{[%clk 00:05:55]} {[%emt 00:00:16]} bxa4 {[%clk 00:01:32]} {[%emt 00:00:14]} 20.
Rxa4 {[%clk 00:05:57]} Rb8 {[%clk 00:01:29]} {[%emt 00:00:05]} 21. Rxa7 {[%clk
00:05:35]} {[%emt 00:00:28]} Rxb3 {[%clk 00:01:08]} {[%emt 00:00:26]} 22. cxb3
{[%clk 00:05:38]} {[%emt 00:00:05]} Qb6 {[%clk 00:01:12]} 23. Ra3 {[%clk
00:05:30]} {[%emt 00:00:11]} d5 {[%clk 00:00:59]} {[%emt 00:00:18]} 24. e5
{[%clk 00:03:51]} {[%emt 00:01:48]} Nd7 {[%clk 00:00:58]} {[%emt 00:00:05]} 25.
Ne2 {[%clk 00:03:53]} g5 {[%clk 00:00:30]} {[%emt 00:00:35]} 26. f4 {[%clk
00:03:53]} {[%emt 00:00:07]} Re8 {[%clk 00:00:15]} {[%emt 00:00:25]} 27. fxg5
{[%clk 00:03:30]} {[%emt 00:00:19]} hxg5 {[%clk 00:00:18]} {[%emt 00:00:05]} 28.
Bxg5 {[%clk 00:02:21]} {[%emt 00:01:11]} Nxe5 {[%clk 00:00:17]} {[%emt
00:00:06]} 29. O-O {[%clk 00:02:16]} {[%emt 00:00:10]} Ba6 {[%clk 00:00:12]}
{[%emt 00:00:10]} 30. Nf4 {[%clk 00:02:05]} {[%emt 00:00:15]} f6 {[%clk
00:00:08]} {[%emt 00:00:10]} 31. Bh4 {[%clk 00:02:08]} {[%emt 00:00:22]} Kf7
{[%clk 00:00:10]} 32. Nh5 {[%clk 00:02:10]} Nd7 {[%clk 00:00:09]} 33. Nxf6
{[%clk 00:01:42]} {[%emt 00:00:25]} Nxf6 {[%clk 00:00:11]} {[%emt 00:00:10]} 34.
Bxf6 {[%clk 00:01:46]} Bxf6 {[%clk 00:00:12]} 35. Qe5 {[%clk 00:01:38]} {[%emt
00:00:10]} Rg8 {[%clk 00:00:08]} {[%emt 00:00:10]} 36. Qxf6+ {[%clk 00:01:40]}
{[%emt 00:00:09]} Ke8 {[%clk 00:00:12]} 37. Qf7+ {[%clk 00:01:44]} 1-0

[Event "MČR 2022 rapid"]
[Site "Turnov, Czech Republic"]
[Date "2022.09.11"]
[Round "7.8"]
[White "Šimáček, Pavel"]
[Black "Klement, Lukáš"]
[Result "1/2-1/2"]
[TimeControl "2x 15 min + 5s/move"]
[WhiteElo "2398"]
[BlackElo "2264"]

1. d4 {[%clk 00:15:08]} Nf6 {[%clk 00:15:06]} {[%emt 00:00:22]} 2. c4 {[%clk
00:15:11]} e6 {[%clk 00:15:07]} 3. Nc3 {[%clk 00:15:15]} Bb4 {[%clk 00:15:11]}
4. Qc2 {[%clk 00:15:19]} d5 {[%clk 00:14:58]} {[%emt 00:00:10]} 5. a3 {[%clk
00:15:21]} Bxc3+ {[%clk 00:14:37]} {[%emt 00:00:24]} 6. Qxc3 {[%clk 00:15:25]}
{[%emt 00:00:06]} O-O {[%clk 00:13:32]} {[%emt 00:01:08]} 7. Bg5 {[%clk
00:14:21]} {[%emt 00:01:06]} h6 {[%clk 00:13:04]} {[%emt 00:00:44]} 8. Bh4
{[%clk 00:13:58]} {[%emt 00:00:16]} dxc4 {[%clk 00:12:41]} {[%emt 00:00:38]} 9.
Qxc4 {[%clk 00:13:50]} {[%emt 00:00:07]} Qd5 {[%clk 00:12:33]} {[%emt
00:00:10]} 10. e3 {[%clk 00:13:16]} {[%emt 00:00:44]} Qxc4 {[%clk 00:11:11]}
{[%emt 00:01:23]} 11. Bxc4 {[%clk 00:13:19]} {[%emt 00:00:03]} Nbd7 {[%clk
00:11:09]} {[%emt 00:00:05]} 12. Ne2 {[%clk 00:12:54]} {[%emt 00:00:30]} b6
{[%clk 00:10:44]} {[%emt 00:00:35]} 13. f3 {[%clk 00:12:34]} {[%emt 00:00:26]}
c5 {[%clk 00:10:38]} {[%emt 00:00:05]} 14. Kf2 {[%clk 00:12:17]} {[%emt
00:00:22]} Bb7 {[%clk 00:10:27]} {[%emt 00:00:16]} 15. Rhd1 {[%clk 00:12:08]}
{[%emt 00:00:14]} cxd4 {[%clk 00:10:23]} {[%emt 00:00:15]} 16. Nxd4 {[%clk
00:12:07]} {[%emt 00:00:04]} Ne5 {[%clk 00:10:01]} {[%emt 00:00:23]} 17. Be2
{[%clk 00:11:52]} {[%emt 00:00:20]} a6 {[%clk 00:09:25]} {[%emt 00:00:42]} 18.
Bg3 {[%clk 00:11:35]} {[%emt 00:00:21]} Nc6 {[%clk 00:09:10]} {[%emt 00:00:20]}
19. Nxc6 {[%clk 00:11:31]} {[%emt 00:00:10]} Bxc6 {[%clk 00:09:06]} {[%emt
00:00:12]} 20. Rd6 {[%clk 00:10:28]} {[%emt 00:01:03]} Rfc8 {[%clk 00:09:09]}
{[%emt 00:00:05]} 21. Rc1 {[%clk 00:10:29]} {[%emt 00:00:04]} Bb5 {[%clk
00:08:58]} {[%emt 00:00:14]} 22. Rxc8+ {[%clk 00:10:02]} {[%emt 00:00:43]} Rxc8
{[%clk 00:09:02]} 23. Bd1 {[%clk 00:10:06]} Rc6 {[%clk 00:08:41]} {[%emt
00:00:17]} 24. Rd8+ {[%clk 00:06:20]} {[%emt 00:03:51]} Kh7 {[%clk 00:08:43]}
{[%emt 00:00:05]} 25. a4 {[%clk 00:06:23]} Bc4 {[%clk 00:08:08]} {[%emt
00:00:40]} 26. Be5 {[%clk 00:06:25]} {[%emt 00:00:15]} Ba2 {[%clk 00:07:09]}
{[%emt 00:00:52]} 27. Ke1 {[%clk 00:06:07]} {[%emt 00:00:23]} Bb1 {[%clk
00:04:18]} {[%emt 00:02:56]} 28. Kd2 {[%clk 00:05:39]} {[%emt 00:00:35]}
1/2-1/2

[Event "MČR 2022 rapid"]
[Site "Turnov, Czech Republic"]
[Date "2022.09.11"]
[Round "8.1"]
[White "Polák, Tomáš"]
[Black "Štoček, Jiří"]
[Result "1/2-1/2"]
[TimeControl "2x 15 min + 5s/move"]
[WhiteElo "2487"]
[BlackElo "2521"]

1. Nf3 {[%clk 00:15:06]} {[%emt 00:00:04]} Nf6 {[%clk 00:15:08]} 2. c4 {[%clk
00:15:10]} {[%emt 00:00:05]} c5 {[%clk 00:14:52]} {[%emt 00:00:44]} 3. Nc3
{[%clk 00:15:11]} e6 {[%clk 00:14:55]} 4. e3 {[%clk 00:15:10]} g6 {[%clk
00:14:44]} {[%emt 00:00:08]} 5. d4 {[%clk 00:14:25]} {[%emt 00:00:51]} Bg7
{[%clk 00:14:46]} 6. Be2 {[%clk 00:13:40]} {[%emt 00:00:48]} O-O {[%clk
00:14:47]} {[%emt 00:00:05]} 7. O-O {[%clk 00:13:43]} b6 {[%clk 00:14:29]}
{[%emt 00:00:24]} 8. b3 {[%clk 00:12:49]} {[%emt 00:01:03]} Bb7 {[%clk
00:14:31]} 9. Bb2 {[%clk 00:12:54]} Qe7 {[%clk 00:13:12]} {[%emt 00:01:23]} 10.
Rc1 {[%clk 00:12:30]} {[%emt 00:00:29]} d6 {[%clk 00:13:04]} {[%emt 00:00:15]}
11. dxc5 {[%clk 00:10:37]} {[%emt 00:01:55]} dxc5 {[%clk 00:12:31]} {[%emt
00:00:39]} 12. Qc2 {[%clk 00:10:23]} {[%emt 00:00:19]} Nc6 {[%clk 00:12:29]}
{[%emt 00:00:06]} 13. Rfd1 {[%clk 00:10:25]} {[%emt 00:00:05]} Rfd8 {[%clk
00:12:28]} {[%emt 00:00:11]} 14. Rxd8+ {[%clk 00:09:54]} {[%emt 00:00:29]} Rxd8
{[%clk 00:12:31]} {[%emt 00:00:05]} 15. Rd1 {[%clk 00:09:50]} {[%emt 00:00:08]}
Nb4 {[%clk 00:11:56]} {[%emt 00:00:39]} 16. Qb1 {[%clk 00:09:33]} {[%emt
00:00:22]} Rxd1+ {[%clk 00:11:10]} {[%emt 00:00:52]} 17. Bxd1 {[%clk 00:09:10]}
{[%emt 00:00:27]} Qd8 {[%clk 00:10:03]} {[%emt 00:01:12]} 18. Be2 {[%clk
00:08:54]} {[%emt 00:00:21]} h6 {[%clk 00:06:03]} {[%emt 00:04:14]} 19. a3
{[%clk 00:08:24]} {[%emt 00:00:26]} Nc6 {[%clk 00:06:06]} {[%emt 00:00:05]} 20.
Nb5 {[%clk 00:06:52]} {[%emt 00:01:34]} Ne8 {[%clk 00:05:54]} {[%emt 00:00:17]}
21. Bxg7 {[%clk 00:06:21]} {[%emt 00:00:35]} Kxg7 {[%clk 00:05:56]} {[%emt
00:00:07]} 22. Qb2+ {[%clk 00:06:18]} {[%emt 00:00:10]} Kg8 {[%clk 00:05:36]}
{[%emt 00:00:20]} 23. Nd2 {[%clk 00:05:53]} {[%emt 00:00:30]} a6 {[%clk
00:05:24]} {[%emt 00:00:17]} 24. Nc3 {[%clk 00:05:54]} {[%emt 00:00:07]} Ne7
{[%clk 00:04:47]} {[%emt 00:00:39]} 25. Bf3 {[%clk 00:05:33]} {[%emt 00:00:25]}
Bxf3 {[%clk 00:04:44]} {[%emt 00:00:09]} 26. Nxf3 {[%clk 00:05:37]} Nf6 {[%clk
00:04:27]} {[%emt 00:00:23]} 1/2-1/2

[Event "MČR 2022 rapid"]
[Site "Turnov, Czech Republic"]
[Date "2022.09.11"]
[Round "8.2"]
[White "Petr, Martin"]
[Black "Němec, Jáchym"]
[Result "1-0"]
[TimeControl "2x 15 min + 5s/move"]
[WhiteElo "2506"]
[BlackElo "2057"]

1. e4 {[%clk 00:15:08]} {[%emt 00:00:06]} c5 {[%clk 00:15:09]} 2. Be2 {[%clk
00:15:12]} Nc6 {[%clk 00:15:05]} {[%emt 00:00:13]} 3. f4 {[%clk 00:15:15]} d5
{[%clk 00:15:03]} {[%emt 00:00:06]} 4. d3 {[%clk 00:15:18]} {[%emt 00:00:04]}
Nf6 {[%clk 00:15:05]} 5. e5 {[%clk 00:15:10]} {[%emt 00:00:15]} Ng8 {[%clk
00:15:08]} 6. c4 {[%clk 00:14:48]} {[%emt 00:00:25]} dxc4 {[%clk 00:13:28]}
{[%emt 00:01:43]} 7. dxc4 {[%clk 00:14:50]} {[%emt 00:00:07]} Bf5 {[%clk
00:13:19]} {[%emt 00:00:12]} 8. Nf3 {[%clk 00:13:50]} {[%emt 00:01:11]} e6
{[%clk 00:12:17]} {[%emt 00:01:01]} 9. O-O {[%clk 00:13:08]} {[%emt 00:00:51]}
Be7 {[%clk 00:10:55]} {[%emt 00:01:27]} 10. Nc3 {[%clk 00:12:55]} {[%emt
00:00:13]} h5 {[%clk 00:10:53]} {[%emt 00:00:07]} 11. Be3 {[%clk 00:11:37]}
{[%emt 00:01:23]} Nh6 {[%clk 00:10:48]} {[%emt 00:00:10]} 12. Qb3 {[%clk
00:10:14]} {[%emt 00:01:32]} Qc8 {[%clk 00:10:08]} {[%emt 00:00:45]} 13. Nb5
{[%clk 00:09:52]} {[%emt 00:00:27]} O-O {[%clk 00:09:52]} {[%emt 00:00:16]} 14.
Rad1 {[%clk 00:09:49]} {[%emt 00:00:08]} Bg6 {[%clk 00:09:08]} {[%emt
00:00:49]} 15. Nd6 {[%clk 00:09:23]} {[%emt 00:00:36]} Bxd6 {[%clk 00:09:10]}
{[%emt 00:00:05]} 16. exd6 {[%clk 00:09:17]} {[%emt 00:00:05]} b6 {[%clk
00:08:23]} {[%emt 00:00:51]} 17. Ne5 {[%clk 00:07:39]} {[%emt 00:01:44]} Be4
{[%clk 00:08:09]} {[%emt 00:00:19]} 18. Bxh5 {[%clk 00:07:31]} {[%emt
00:00:12]} Nf5 {[%clk 00:07:41]} {[%emt 00:00:36]} 19. Bf3 {[%clk 00:06:35]}
{[%emt 00:01:03]} Bxf3 {[%clk 00:07:12]} {[%emt 00:00:34]} 20. Nxf3 {[%clk
00:06:09]} {[%emt 00:00:27]} Rd8 {[%clk 00:07:10]} {[%emt 00:00:06]} 21. Bf2
{[%clk 00:05:40]} {[%emt 00:00:35]} Rxd6 {[%clk 00:06:04]} {[%emt 00:05:51]} 22.
Rxd6 {[%clk 00:05:25]} Nxd6 {[%clk 00:06:07]} 23. Qd3 {[%clk 00:05:29]} Nf5
{[%clk 00:04:15]} 24. g4 {[%clk 00:05:25]} Nfe7 {[%clk 00:03:01]} {[%emt
00:00:09]} 25. Ng5 {[%clk 00:05:19]} Ng6 {[%clk 00:03:03]} 26. f5 {[%clk
00:03:41]} {[%emt 00:00:56]} exf5 {[%clk 00:02:58]} {[%emt 00:00:09]} 27. gxf5
{[%clk 00:03:44]} {[%emt 00:00:08]} Nf8 {[%clk 00:02:49]} {[%emt 00:00:08]} 28.
Nxf7 {[%clk 00:03:21]} {[%emt 00:00:28]} Nb4 {[%clk 00:02:02]} {[%emt
00:00:55]} 29. Qf3 {[%clk 00:02:00]} {[%emt 00:01:23]} Kxf7 {[%clk 00:02:00]}
{[%emt 00:00:06]} 30. a3 {[%clk 00:02:04]} {[%emt 00:00:05]} Qc6 {[%clk
00:01:17]} {[%emt 00:00:48]} 31. Qh5+ {[%clk 00:02:07]} Kg8 {[%clk 00:00:59]}
{[%emt 00:00:22]} 32. axb4 {[%clk 00:02:10]} cxb4 {[%clk 00:01:01]} {[%emt
00:00:05]} 33. Bd4 {[%clk 00:01:54]} {[%emt 00:00:19]} Qxc4 {[%clk 00:00:49]}
{[%emt 00:00:18]} 34. Bxg7 {[%clk 00:01:36]} {[%emt 00:00:27]} Nh7 {[%clk
00:00:28]} {[%emt 00:00:27]} 35. Qg6 {[%clk 00:01:19]} {[%emt 00:00:19]} Qf7
{[%clk 00:00:29]} {[%emt 00:00:06]} 36. Bd4+ {[%clk 00:00:31]} {[%emt
00:00:51]} Qxg6+ {[%clk 00:00:29]} {[%emt 00:00:06]} 37. fxg6 {[%clk 00:00:34]}
Nf8 {[%clk 00:00:34]} 38. Rf7 {[%clk 00:00:38]} {[%emt 00:00:09]} Nxg6 {[%clk
00:00:14]} {[%emt 00:00:18]} 39. Rg7+ {[%clk 00:00:43]} Kf8 {[%clk 00:00:18]}
40. Rxg6 {[%clk 00:00:47]} Rd8 {[%clk 00:00:21]} {[%emt 00:00:05]} 41. Rg4
{[%clk 00:00:45]} {[%emt 00:00:07]} Kf7 {[%clk 00:00:23]} {[%emt 00:00:04]} 42.
Kf2 {[%clk 00:00:48]} {[%emt 00:00:04]} Ke6 {[%clk 00:00:24]} 43. Ke3 {[%clk
00:00:52]} Kd5 {[%clk 00:00:14]} {[%emt 00:00:46]} 44. Kd3 {[%clk 00:00:55]}
Rf8 {[%clk 00:00:15]} {[%emt 00:05:28]} 45. Rg5+ {[%clk 00:00:56]} Kd6 {[%clk
00:00:19]} 46. Kc4 {[%clk 00:00:58]} Rf4 {[%clk 00:00:13]} 47. Rg6+ {[%clk
00:01:01]} Kc7 {[%clk 00:00:16]} {[%emt 00:00:04]} 48. Kd5 {[%clk 00:01:05]}
Kb7 {[%clk 00:00:20]} 49. Be5 {[%clk 00:00:54]} Rh4 {[%clk 00:00:24]} 50. Rg7+
{[%clk 00:00:58]} Ka6 {[%clk 00:00:27]} 51. Bb8 {[%clk 00:01:02]} Kb5 {[%clk
00:00:24]} 52. Rxa7 {[%clk 00:00:59]} Rh3 {[%clk 00:00:13]} 53. Be5 {[%clk
00:01:00]} Rd3 {[%clk 00:00:16]} 54. Ke4 {[%clk 00:00:59]} Rh3 {[%clk
00:00:20]} 55. Rc7 {[%clk 00:01:01]} Rh4+ {[%clk 00:00:23]} 56. Kd5 {[%clk
00:01:04]} Rh5 {[%clk 00:00:23]} 57. Rf7 {[%clk 00:01:00]} Ka4 {[%clk
00:00:22]} 58. Rf3 {[%clk 00:01:03]} Kb5 {[%clk 00:00:11]} 59. Rf8 {[%clk
00:00:55]} Ka4 {[%clk 00:00:13]} 60. Rh8 {[%clk 00:00:58]} Rg5 {[%clk
00:00:13]} 61. h4 {[%clk 00:00:59]} 1-0

[Event "MČR 2022 rapid"]
[Site "Turnov, Czech Republic"]
[Date "2022.09.11"]
[Round "8.3"]
[White "Roubalík, Jakub"]
[Black "Neuman, Petr"]
[Result "1-0"]
[TimeControl "2x 15 min + 5s/move"]
[WhiteElo "2339"]
[BlackElo "2416"]

1. d4 {[%clk 00:15:09]} d5 {[%clk 00:15:08]} {[%emt 00:00:06]} 2. c4 {[%clk
00:15:11]} {[%emt 00:00:04]} c6 {[%clk 00:15:12]} 3. Nc3 {[%clk 00:15:11]}
{[%emt 00:00:06]} Nf6 {[%clk 00:15:15]} 4. cxd5 {[%clk 00:15:09]} {[%emt
00:00:10]} cxd5 {[%clk 00:15:19]} 5. Bf4 {[%clk 00:15:12]} Nc6 {[%clk
00:15:22]} 6. e3 {[%clk 00:15:16]} {[%emt 00:00:04]} Bg4 {[%clk 00:15:21]}
{[%emt 00:00:05]} 7. f3 {[%clk 00:15:11]} {[%emt 00:00:08]} Bd7 {[%clk
00:14:40]} {[%emt 00:00:47]} 8. Bd3 {[%clk 00:14:58]} {[%emt 00:00:18]} e6
{[%clk 00:14:44]} 9. Bg3 {[%clk 00:14:00]} {[%emt 00:01:08]} Be7 {[%clk
00:14:45]} 10. Nge2 {[%clk 00:14:02]} {[%emt 00:00:04]} O-O {[%clk 00:14:21]}
{[%emt 00:00:36]} 11. O-O {[%clk 00:14:02]} a6 {[%clk 00:13:44]} {[%emt
00:00:38]} 12. Rc1 {[%clk 00:14:01]} {[%emt 00:00:05]} b5 {[%clk 00:13:47]}
{[%emt 00:00:07]} 13. Kh1 {[%clk 00:13:43]} {[%emt 00:00:18]} Qb6 {[%clk
00:13:47]} {[%emt 00:00:05]} 14. Bb1 {[%clk 00:13:30]} {[%emt 00:00:18]} Na5
{[%clk 00:13:40]} {[%emt 00:00:13]} 15. Bh4 {[%clk 00:11:01]} {[%emt 00:02:37]}
Rfc8 {[%clk 00:10:01]} {[%emt 00:03:40]} 16. e4 {[%clk 00:09:27]} {[%emt
00:01:46]} b4 {[%clk 00:08:24]} {[%emt 00:01:36]} 17. Na4 {[%clk 00:08:58]}
{[%emt 00:00:36]} Bxa4 {[%clk 00:08:21]} {[%emt 00:00:06]} 18. Qxa4 {[%clk
00:09:01]} {[%emt 00:00:05]} dxe4 {[%clk 00:07:43]} {[%emt 00:00:45]} 19. fxe4
{[%clk 00:08:33]} {[%emt 00:00:31]} Nc4 {[%clk 00:04:32]} {[%emt 00:03:13]} 20.
e5 {[%clk 00:07:28]} {[%emt 00:01:21]} Nd5 {[%clk 00:04:36]} 21. Bxe7 {[%clk
00:07:31]} Nxe7 {[%clk 00:04:40]} 22. Qc2 {[%clk 00:06:54]} {[%emt 00:00:35]}
g6 {[%clk 00:03:55]} {[%emt 00:00:50]} 23. Qd3 {[%clk 00:06:52]} {[%emt
00:00:08]} Nxb2 {[%clk 00:03:17]} {[%emt 00:00:43]} 24. Qb3 {[%clk 00:06:30]}
{[%emt 00:00:31]} Nc4 {[%clk 00:02:37]} {[%emt 00:00:41]} 25. Rxc4 {[%clk
00:06:31]} {[%emt 00:00:05]} Rxc4 {[%clk 00:02:41]} {[%emt 00:00:04]} 26. Qxc4
{[%clk 00:06:34]} Rc8 {[%clk 00:02:45]} 27. Qd3 {[%clk 00:06:31]} {[%emt
00:00:12]} Nd5 {[%clk 00:02:45]} 28. Qf3 {[%clk 00:06:30]} {[%emt 00:00:05]}
Rc7 {[%clk 00:02:45]} {[%emt 00:00:14]} 29. Be4 {[%clk 00:05:57]} {[%emt
00:00:28]} Nc3 {[%clk 00:02:49]} 30. d5 {[%clk 00:04:35]} {[%emt 00:01:29]}
Nxe2 {[%clk 00:01:39]} {[%emt 00:01:15]} 31. Qxe2 {[%clk 00:04:37]} {[%emt
00:00:05]} Qd4 {[%clk 00:01:40]} {[%emt 00:00:04]} 32. d6 {[%clk 00:03:48]}
{[%emt 00:00:55]} Rc8 {[%clk 00:01:04]} {[%emt 00:00:39]} 33. Bb7 {[%clk
00:03:32]} {[%emt 00:00:20]} 1-0

[Event "MČR 2022 rapid"]
[Site "Turnov, Czech Republic"]
[Date "2022.09.11"]
[Round "8.4"]
[White "Klement, Lukáš"]
[Black "Pisk, Petr"]
[Result "1/2-1/2"]
[TimeControl "2x 15 min + 5s/move"]
[WhiteElo "2264"]
[BlackElo "2389"]

1. d4 {[%clk 00:15:08]} {[%emt 00:00:04]} d5 {[%clk 00:14:57]} {[%emt
00:00:09]} 2. Nf3 {[%clk 00:15:11]} {[%emt 00:00:14]} c5 {[%clk 00:14:59]} 3.
dxc5 {[%clk 00:14:07]} {[%emt 00:01:03]} e6 {[%clk 00:14:51]} {[%emt 00:00:11]}
4. c4 {[%clk 00:13:53]} {[%emt 00:00:19]} Bxc5 {[%clk 00:14:47]} {[%emt
00:00:10]} 5. e3 {[%clk 00:13:17]} {[%emt 00:01:03]} Nf6 {[%clk 00:14:46]} 6.
Nc3 {[%clk 00:13:19]} O-O {[%clk 00:14:46]} 7. a3 {[%clk 00:13:06]} {[%emt
00:00:13]} Nc6 {[%clk 00:14:46]} {[%emt 00:00:05]} 8. b4 {[%clk 00:12:53]}
{[%emt 00:00:17]} Bd6 {[%clk 00:14:48]} 9. cxd5 {[%clk 00:12:22]} {[%emt
00:00:44]} exd5 {[%clk 00:14:50]} 10. Bb2 {[%clk 00:12:17]} {[%emt 00:00:10]}
Re8 {[%clk 00:14:47]} {[%emt 00:00:06]} 11. Be2 {[%clk 00:12:19]} {[%emt
00:00:04]} a6 {[%clk 00:13:31]} {[%emt 00:01:17]} 12. Rc1 {[%clk 00:12:07]}
{[%emt 00:00:17]} 1/2-1/2

[Event "MČR 2022 rapid"]
[Site "Turnov, Czech Republic"]
[Date "2022.09.11"]
[Round "8.5"]
[White "Plát, Vojtěch"]
[Black "Rubeš, Jan"]
[Result "1-0"]
[TimeControl "2x 15 min + 5s/move"]
[WhiteElo "2563"]
[BlackElo "2346"]

1. e4 {[%clk 00:15:08]} c5 {[%clk 00:15:03]} {[%emt 00:00:10]} 2. Nf3 {[%clk
00:15:12]} e6 {[%clk 00:15:06]} 3. d4 {[%clk 00:15:15]} cxd4 {[%clk 00:15:10]}
{[%emt 00:00:04]} 4. Nxd4 {[%clk 00:15:19]} Nc6 {[%clk 00:15:13]} {[%emt
00:00:04]} 5. Nc3 {[%clk 00:15:22]} a6 {[%clk 00:15:17]} 6. Be3 {[%clk
00:15:21]} {[%emt 00:00:04]} d6 {[%clk 00:15:09]} {[%emt 00:00:13]} 7. Be2
{[%clk 00:15:25]} Bd7 {[%clk 00:15:01]} {[%emt 00:00:15]} 8. O-O {[%clk
00:15:28]} {[%emt 00:00:05]} Nf6 {[%clk 00:15:04]} 9. f4 {[%clk 00:15:27]}
{[%emt 00:00:06]} Be7 {[%clk 00:15:03]} {[%emt 00:00:05]} 10. Kh1 {[%clk
00:15:32]} O-O {[%clk 00:15:05]} {[%emt 00:00:05]} 11. Qe1 {[%clk 00:15:34]}
{[%emt 00:00:09]} Nxd4 {[%clk 00:13:54]} {[%emt 00:01:11]} 12. Bxd4 {[%clk
00:15:38]} Bc6 {[%clk 00:13:59]} 13. Qg3 {[%clk 00:15:37]} {[%emt 00:00:06]} b5
{[%clk 00:13:47]} {[%emt 00:00:14]} 14. a3 {[%clk 00:15:41]} g6 {[%clk
00:13:44]} {[%emt 00:00:14]} 15. Bf3 {[%clk 00:15:39]} {[%emt 00:00:04]} Rc8
{[%clk 00:13:28]} {[%emt 00:00:18]} 16. Rad1 {[%clk 00:15:41]} {[%emt
00:00:06]} Nd7 {[%clk 00:11:59]} {[%emt 00:01:35]} 17. f5 {[%clk 00:15:34]}
{[%emt 00:00:09]} a5 {[%clk 00:11:14]} {[%emt 00:00:50]} 18. Bh5 {[%clk
00:10:52]} {[%emt 00:04:47]} exf5 {[%clk 00:10:02]} {[%emt 00:01:20]} 19. exf5
{[%clk 00:10:49]} {[%emt 00:00:05]} Bh4 {[%clk 00:10:05]} 20. fxg6 {[%clk
00:08:47]} {[%emt 00:02:12]} hxg6 {[%clk 00:08:32]} {[%emt 00:01:40]} 21. Qxd6
{[%clk 00:08:44]} {[%emt 00:00:05]} Qe7 {[%clk 00:03:15]} {[%emt 00:11:33]} 22.
Qxe7 {[%clk 00:07:59]} Bxe7 {[%clk 00:03:18]} 23. Bf3 {[%clk 00:07:46]} b4
{[%clk 00:03:11]} 24. Bxc6 {[%clk 00:07:28]} Rxc6 {[%clk 00:03:14]} {[%emt
00:00:05]} 25. Nd5 {[%clk 00:07:32]} Bd6 {[%clk 00:02:52]} 26. axb4 {[%clk
00:07:33]} axb4 {[%clk 00:02:56]} 27. c3 {[%clk 00:06:52]} {[%emt 00:00:05]}
bxc3 {[%clk 00:02:59]} 28. Bxc3 {[%clk 00:06:54]} f5 {[%clk 00:02:04]} 29. Rfe1
{[%clk 00:06:06]} Kf7 {[%clk 00:01:44]} 30. Ne7 {[%clk 00:06:10]} Bxe7 {[%clk
00:01:18]} 31. Rxd7 {[%clk 00:06:14]} Re6 {[%clk 00:01:22]} 32. Rxe6 {[%clk
00:06:18]} Kxe6 {[%clk 00:01:27]} 33. Rxe7+ {[%clk 00:06:22]} Kd5 {[%clk
00:15:05]} 1-0